bitfinex-derivatives/quotes_BNBF0:USTF0_20250221
["timestamp","ask_amount","ask_price","bid_price","bid_amount"]
[1740130066425,3.10157531,658.65,657.09,0.3043723]
[1740130066621,3.40523132,658.64,657.09,0.3043723]
[1740130066821,3.40523593,658.63,657.09,0.3043723]
[1740130067027,3.10157531,658.62,657.09,0.3043723]
[1740130067225,0.30366062,658.63,657.09,0.3043723]
[1740130067226,3.10157531,658.61,657.09,0.3043723]
[1740130067529,3.40524977,658.6,657.09,0.3043723]
[1740130067724,3.10157531,658.59,657.09,0.3043723]
[1740130067927,3.10157531,658.58,657.09,0.3043723]
[1740130068131,3.10157531,658.57,657.09,0.3043723]
[1740130068328,3.10157531,658.56,657.09,0.3043723]
[1740130068525,3.10157531,658.55,657.09,0.3043723]
[1740130068731,3.10157531,658.54,657.09,0.3043723]
[1740130068925,3.10157531,658.53,657.09,0.3043723]
[1740130069127,3.10157531,658.52,657.09,0.3043723]
[1740130069326,3.10157531,658.51,657.09,0.3043723]
[1740130069529,3.10157531,658.5,657.09,0.3043723]
[1740130069727,3.10157531,658.49,657.09,0.3043723]
[1740130069931,3.10157531,658.48,657.09,0.3043723]
[1740130070235,3.10157531,658.47,657.09,0.3043723]
[1740130070425,3.10157531,658.46,657.09,0.3043723]
[1740130070625,3.10157531,658.45,657.09,0.3043723]
[1740130070826,3.10157531,658.44,657.09,0.3043723]
[1740130071025,3.10157531,658.43,657.09,0.3043723]
[1740130071228,3.10157531,658.42,657.09,0.3043723]
[1740130071431,3.10157531,658.41,657.09,0.3043723]
[1740130071624,2.24280068,658.41,657.09,0.3043723]
[1740130072230,0.30367446,658.6,657.09,0.3043723]
[1740130074735,3.09419347,658.59,657.09,0.3043723]
[1740130074936,3.39787715,658.58,657.09,0.3043723]
[1740130075131,3.09419347,658.57,657.09,0.3043723]
[1740130075333,3.09419347,658.56,657.09,0.3043723]
[1740130075533,3.39789098,658.55,657.09,0.3043723]
[1740130075732,3.39789559,658.54,657.09,0.3043723]
[1740130075935,3.39790021,658.53,657.09,0.3043723]
[1740130076129,3.39790482,658.52,657.09,0.3043723]
[1740130076333,3.39790943,658.51,657.09,0.3043723]
[1740130076532,0.30372057,658.5,657.09,0.3043723]
[1740130079337,1.58730762,658.49,657.09,0.3043723]
[1740130079637,0.3037298,658.48,657.09,0.3043723]
[1740130083244,3.09419347,658.47,657.09,0.3043723]
[1740130083539,3.09419347,658.46,657.09,0.3043723]
[1740130083744,3.09419347,658.45,657.09,0.3043723]
[1740130084043,3.09419347,658.44,657.09,0.3043723]
[1740130084247,3.39794633,658.43,657.09,0.3043723]
[1740130084444,3.09419347,658.42,657.09,0.3043723]
[1740130084648,2.54655354,658.43,657.09,0.3043723]
[1740130084649,3.09419347,658.41,657.09,0.3043723]
[1740130084842,3.09419347,658.4,657.09,0.3043723]
[1740130085043,3.09419347,658.39,657.09,0.3043723]
[1740130085243,3.09419347,658.38,657.09,0.3043723]
[1740130085446,3.09419347,658.37,657.09,0.3043723]
[1740130085642,3.09419347,658.36,657.09,0.3043723]
[1740130085939,3.39798324,658.35,657.09,0.3043723]
[1740130086144,0.30378977,658.35,657.09,0.3043723]
[1740130087144,5.32674468,658.34,657.09,0.3043723]
[1740130087345,3.08929049,658.33,657.09,0.3043723]
[1740130087540,3.08929049,658.32,657.09,0.3043723]
[1740130087745,3.08929049,658.31,657.09,0.3043723]
[1740130087943,3.08929049,658.3,657.09,0.3043723]
[1740130088239,2.23745419,658.34,656.07,1.12260335]
[1740130088240,3.67234907,658.29,656.07,1.12260335]
[1740130088439,3.36853161,658.28,656.18,0.30479441]
[1740130088644,3.36853161,658.27,656.18,0.30479441]
[1740130088849,3.08929049,658.26,656.18,0.30479441]
[1740130089147,3.08929049,658.25,656.18,0.30479441]
[1740130089340,3.08929049,658.24,656.18,0.30479441]
[1740130089543,3.08929049,658.23,656.18,0.30479441]
[1740130089744,3.08929049,658.22,656.18,0.30479441]
[1740130090047,3.08929049,658.25,656.18,0.30479441]
[1740130090747,0.30381746,658.29,656.18,0.30479441]
[1740130091841,3.36854515,658.28,656.18,0.30479441]
[1740130092039,3.08929049,658.27,656.18,0.30479441]
[1740130092242,3.08929049,658.26,656.18,0.30479441]
[1740130092446,2.23745419,658.27,656.18,0.30479441]
[1740130093046,2.23745419,658.26,656.18,0.30479441]
[1740130094243,0.30381746,658.29,656.18,0.30479441]
[1740130097451,3.08929049,658.28,656.18,0.30479441]
[1740130097654,0.30383131,658.26,656.18,0.30479441]
[1740130100250,1.58829167,658.25,656.18,0.30479441]
[1740130100452,0.30384516,658.23,656.18,0.30479441]
[1740130101251,0.27931338,658.22,656.18,0.30479441]
[1740130101556,0.303859,658.2,656.18,0.30479441]
[1740130101755,0.27931338,658.19,656.18,0.30479441]
[1740130102049,0.30387285,658.17,656.18,0.30479441]
[1740130105252,3.08929049,658.16,656.18,0.30479441]
[1740130105554,3.39317258,658.15,656.18,0.30479441]
[1740130105857,3.08929049,658.14,656.18,0.30479441]
[1740130106057,0.30388209,658.15,656.18,0.30479441]
[1740130106058,3.08929049,658.13,656.18,0.30479441]
[1740130106259,3.08929049,658.12,656.18,0.30479441]
[1740130106455,3.08929049,658.11,656.18,0.30479441]
[1740130106653,3.08929049,658.1,656.18,0.30479441]
[1740130106953,3.08929049,658.09,656.18,0.30479441]
[1740130107154,3.08929049,658.08,656.18,0.30479441]
[1740130107359,3.08929049,658.07,656.18,0.30479441]
[1740130107656,5.32674468,658.06,656.18,0.30479441]
[1740130107857,3.08929049,658.05,656.18,0.30479441]
[1740130108057,3.08929049,658.04,656.18,0.30479441]
[1740130108259,3.08929049,658.03,656.18,0.30479441]
[1740130108453,3.08929049,658.02,656.18,0.30479441]
[1740130108654,3.08929049,658.05,656.18,0.30479441]
[1740130108860,2.23745419,658.06,656.18,0.30479441]
[1740130109262,2.23745419,658.05,656.18,0.30479441]
[1740130111266,0.30388209,658.15,656.18,0.30479441]
[1740130120681,0.30388209,658.15,656.42,1.12260335]
[1740130121077,0.30388209,658.15,656.44,0.30467369]
[1740130122074,3.0816591,658.57,656.44,0.30467369]
[1740130122279,2.54114709,658.56,656.44,0.30467369]
[1740130122480,0.30369751,658.55,656.44,0.30467369]
[1740130122876,0.30369751,658.55,656.58,1.12260335]
[1740130123083,0.30369751,658.55,656.6,0.30459945]
[1740130123978,2.23745419,658.54,656.6,0.30459945]
[1740130124176,0.30370674,658.53,656.6,0.30459945]
[1740130124978,3.38536584,658.53,656.6,0.30459945]
[1740130125183,3.0816591,658.52,656.6,0.30459945]
[1740130125388,3.38536584,658.53,656.6,0.30459945]
[1740130125585,2.23745419,658.52,656.6,0.30459945]
[1740130125783,5.31911329,658.52,656.6,0.30459945]
[1740130125977,2.23745419,658.52,656.6,0.30459945]
[1740130126580,3.0816591,658.51,656.6,0.30459945]
[1740130126780,3.0816591,658.5,656.6,0.30459945]
[1740130126982,5.31911329,658.49,656.6,0.30459945]
[1740130127183,3.0816591,658.48,656.6,0.30459945]
[1740130127583,2.23745419,658.49,656.6,0.30459945]
[1740130128087,3.0816591,658.48,656.6,0.30459945]
[1740130128387,3.0816591,658.47,656.6,0.30459945]
[1740130128687,2.23745419,658.47,656.6,0.30459945]
[1740130128888,5.31911329,658.47,656.6,0.30459945]
[1740130129087,3.0816591,658.46,656.6,0.30459945]
[1740130129484,2.23745419,658.47,656.6,0.30459945]
[1740130130187,5.31911329,658.46,656.6,0.30459945]
[1740130130389,3.0816591,658.45,656.6,0.30459945]
[1740130130689,3.0816591,658.44,656.6,0.30459945]
[1740130130988,1.58739209,658.44,656.6,0.30459945]
[1740130131589,3.10464763,658.43,656.6,0.30459945]
[1740130131787,1.58739209,658.44,656.6,0.30459945]
[1740130132590,3.10464763,658.43,656.6,0.30459945]
[1740130133087,1.58739209,658.44,656.6,0.30459945]
[1740130133282,3.10464763,658.43,656.6,0.30459945]
[1740130133482,2.23745419,658.42,656.6,0.30459945]
[1740130134487,5.34210182,658.42,656.6,0.30459945]
[1740130134687,3.10464763,658.41,656.6,0.30459945]
[1740130135085,2.23745419,658.42,656.6,0.30459945]
[1740130135290,2.23745419,658.4,656.6,0.30459945]
[1740130136291,3.10464763,658.39,656.6,0.30459945]
[1740130136491,3.10464763,658.38,656.6,0.30459945]
[1740130136686,3.10464763,658.37,656.6,0.30459945]
[1740130136887,3.10464763,658.36,656.6,0.30459945]
[1740130137089,3.10464763,658.35,656.6,0.30459945]
[1740130137287,3.10464763,658.34,656.6,0.30459945]
[1740130137489,3.10464763,658.35,656.6,0.30459945]
[1740130137692,3.10464763,658.34,656.6,0.30459945]
[1740130137890,3.10464763,658.33,656.6,0.30459945]
[1740130138087,3.10464763,658.35,656.6,0.30459945]
[1740130138287,2.23745419,658.36,656.6,0.30459945]
[1740130138893,2.23745419,658.35,656.6,0.30459945]
[1740130140693,2.23745419,658.34,656.6,0.30459945]
[1740130141095,3.10801945,658.33,656.6,0.30459945]
[1740130141393,3.10801945,658.32,656.6,0.30459945]
[1740130141595,3.10801945,658.33,656.6,0.30459945]
[1740130141786,1.58745244,658.31,656.6,0.30459945]
[1740130141989,3.10801945,658.3,656.6,0.30459945]
[1740130142193,3.10801945,658.29,656.6,0.30459945]
[1740130142392,3.10801945,658.28,656.6,0.30459945]
[1740130142591,1.58745244,658.31,656.6,0.30459945]
[1740130144495,2.23745419,658.3,656.6,0.30459945]
[1740130144897,5.34484923,658.3,656.6,0.30459945]
[1740130145199,3.10739504,658.29,656.6,0.30459945]
[1740130145394,3.10739504,658.28,656.6,0.30459945]
[1740130145591,3.10739504,658.27,656.6,0.30459945]
[1740130145796,3.10739504,658.26,656.6,0.30459945]
[1740130145999,5.34484923,658.25,656.6,0.30459945]
[1740130146298,3.10739504,658.24,656.6,0.30459945]
[1740130146498,3.10739504,658.23,656.6,0.30459945]
[1740130146794,2.23745419,658.25,656.6,0.30459945]
[1740130148099,2.23745419,658.24,656.6,0.30459945]
[1740130149399,5.34489676,658.24,656.6,0.30459945]
[1740130149694,5.34489676,658.23,656.6,0.30459945]
[1740130149900,2.23745419,658.23,656.6,0.30459945]
[1740130151402,2.23745419,658.22,656.6,0.30459945]
[1740130152103,1.58752485,658.21,656.6,0.30459945]
[1740130152803,2.23745419,658.2,656.6,0.30459945]
[1740130153299,3.10896825,658.19,656.6,0.30459945]
[1740130153503,3.10896825,658.18,656.6,0.30459945]
[1740130153699,3.10896825,658.17,656.6,0.30459945]
[1740130153999,3.10896825,658.16,656.6,0.30459945]
[1740130154202,3.10896825,658.15,656.6,0.30459945]
[1740130154402,2.23745419,658.2,656.6,0.30459945]
[1740130154601,1.58752485,658.21,656.6,0.30459945]
[1740130155609,2.25192808,658.2,656.6,0.30459945]
[1740130158007,1.58752485,658.21,656.6,0.30459945]
[1740130158311,3.1092248,658.2,656.6,0.30459945]
[1740130158510,3.1092248,658.19,656.6,0.30459945]
[1740130158710,3.1092248,658.18,656.6,0.30459945]
[1740130158910,3.1092248,658.17,656.6,0.30459945]
[1740130159110,5.36115288,658.16,656.6,0.30459945]
[1740130159313,3.1092248,658.15,656.6,0.30459945]
[1740130159511,3.1092248,658.14,656.6,0.30459945]
[1740130159710,3.1092248,658.13,656.6,0.30459945]
[1740130159911,3.1092248,658.12,656.6,0.30459945]
[1740130160109,3.1092248,658.11,656.6,0.30459945]
[1740130160309,3.1092248,658.1,656.6,0.30459945]
[1740130160508,5.36115288,658.09,656.6,0.30459945]
[1740130160710,3.1092248,658.08,656.76,1.12260335]
[1740130160906,3.1092248,658.07,656.78,0.30451597]
[1740130161113,3.1092248,658.06,656.78,0.30451597]
[1740130161316,3.1092248,658.05,656.78,0.30451597]
[1740130161613,2.25192808,658.09,656.78,0.30451597]
[1740130161614,3.1092248,658.04,656.78,0.30451597]
[1740130161915,3.1092248,658.03,656.78,0.30451597]
[1740130162109,5.36115288,658.02,656.78,0.30451597]
[1740130162310,3.1092248,658.01,656.78,0.30451597]
[1740130162512,3.1092248,658.0,656.78,0.30451597]
[1740130162712,3.1092248,657.99,656.78,0.30451597]
[1740130162913,3.1092248,657.98,656.78,0.30451597]
[1740130163110,1.58764556,658.01,656.78,0.30451597]
[1740130163316,3.11427518,658.0,656.78,0.30451597]
[1740130163510,3.11427518,657.99,656.78,0.30451597]
[1740130163714,3.11427518,657.98,656.78,0.30451597]
[1740130163911,3.11427518,657.97,656.78,0.30451597]
[1740130164116,3.11427518,657.96,656.78,0.30451597]
[1740130164317,3.11709974,657.95,656.78,0.30451597]
[1740130164517,2.25192808,657.99,656.78,0.30451597]
[1740130164714,3.11708381,657.98,656.78,0.30451597]
[1740130164918,3.11708381,657.97,656.78,0.30451597]
[1740130165119,3.11708381,657.96,656.78,0.30451597]
[1740130165419,3.11708381,657.95,656.78,0.30451597]
[1740130165624,2.25192808,657.96,656.78,0.30451597]
[1740130166620,1.58764556,658.01,656.78,0.30451597]
[1740130168416,2.25946361,658.0,656.78,0.30451597]
[1740130170020,1.58764556,658.01,656.78,0.30451597]
[1740130171923,2.25946361,658.0,656.78,0.30451597]
[1740130173023,1.58764556,658.01,656.78,0.30451597]
[1740130176229,2.26105459,658.0,656.78,0.30451597]
[1740130177530,2.26105459,657.99,656.78,0.30451597]
[1740130178723,2.26105459,657.98,656.78,0.30451597]
[1740130180431,2.26105459,657.97,656.78,0.30451597]
[1740130181732,1.58764556,658.01,656.78,0.30451597]
[1740130181934,3.12293562,658.0,656.78,0.30451597]
[1740130182135,3.12293562,657.99,656.78,0.30451597]
[1740130182335,3.12293562,657.98,656.78,0.30451597]
[1740130182532,3.12293562,657.97,656.78,0.30451597]
[1740130182833,3.12293562,657.96,656.78,0.30451597]
[1740130183133,3.12293562,657.95,656.78,0.30451597]
[1740130183438,3.12293562,657.94,656.78,0.30451597]
[1740130183632,3.12293562,657.93,656.8,1.12260335]
[1740130183933,3.12293562,657.92,656.82,0.30449742]
[1740130184138,3.12293562,657.91,656.82,0.30449742]
[1740130184437,2.26182605,657.94,656.82,0.30449742]
[1740130185134,2.26182605,657.93,656.82,0.30449742]
[1740130186637,3.12357315,658.35,656.82,0.30449742]
[1740130186838,3.12357315,658.34,656.82,0.30449742]
[1740130187139,3.12357315,658.33,656.82,0.30449742]
[1740130187346,3.12357315,658.32,656.82,0.30449742]
[1740130187543,3.12357315,658.31,656.82,0.30449742]
[1740130187737,3.12357315,658.3,656.82,0.30449742]
[1740130187937,3.12357315,658.29,656.82,0.30449742]
[1740130188146,3.12357315,658.28,656.82,0.30449742]
[1740130188443,3.12357315,658.27,656.82,0.30449742]
[1740130188639,5.38576081,658.26,656.82,0.30449742]
[1740130188841,3.12357315,658.25,656.82,0.30449742]
[1740130189037,3.42741369,658.24,656.82,0.30449742]
[1740130189342,3.42741831,658.23,656.82,0.30449742]
[1740130189544,3.42742292,658.22,656.82,0.30449742]
[1740130189742,3.42742754,658.21,656.82,0.30449742]
[1740130190042,3.42743215,658.2,656.82,0.30449742]
[1740130190240,3.42743677,658.19,656.82,0.30449742]
[1740130190441,3.12357315,658.18,656.82,0.30449742]
[1740130190642,3.427446,658.17,656.82,0.30449742]
[1740130190843,3.42745062,658.16,656.82,0.30449742]
[1740130191044,3.12357315,658.15,656.82,0.30449742]
[1740130191245,3.12357315,658.14,656.82,0.30449742]
[1740130191445,3.12357315,658.13,656.82,0.30449742]
[1740130191642,3.12357315,658.12,656.82,0.30449742]
[1740130191945,3.12357315,658.11,656.82,0.30449742]
[1740130192147,5.38576081,658.1,656.82,0.30449742]
[1740130192342,3.12357315,658.09,656.82,0.30449742]
[1740130192542,3.12357315,658.08,656.82,0.30449742]
[1740130192745,3.12357315,658.07,656.82,0.30449742]
[1740130192941,3.12357315,658.06,656.82,0.30449742]
[1740130193251,3.12357315,658.05,656.82,0.30449742]
[1740130193448,3.12357315,658.04,656.82,0.30449742]
[1740130193644,3.12357315,658.03,656.82,0.30449742]
[1740130193845,3.12357315,658.02,656.82,0.30449742]
[1740130194043,3.12357315,658.01,656.82,0.30449742]
[1740130194245,3.12357315,658.0,656.82,0.30449742]
[1740130194445,3.12357315,657.99,656.82,0.30449742]
[1740130194642,3.12357315,657.98,656.82,0.30449742]
[1740130194846,3.12357315,657.97,656.82,0.30449742]
[1740130195045,3.12357315,657.96,656.82,0.30449742]
[1740130195253,3.12357315,657.95,656.82,0.30449742]
[1740130195451,3.12357315,657.94,656.82,0.30449742]
[1740130195748,3.12357315,657.93,656.82,0.30449742]
[1740130195948,3.12357315,657.92,656.82,0.30449742]
[1740130196146,3.12357315,657.91,656.82,0.30449742]
[1740130196353,2.26218766,657.94,656.82,0.30449742]
[1740130196354,3.12357315,657.9,656.82,0.30449742]
[1740130196547,3.12357315,657.89,656.82,0.30449742]
[1740130196748,3.12357315,657.88,656.82,0.30449742]
[1740130196956,3.12357315,657.87,656.82,0.30449742]
[1740130197159,3.12357315,657.86,656.82,0.30449742]
[1740130197351,3.12357315,657.85,656.82,0.30449742]
[1740130197551,3.12357315,657.84,656.82,0.30449742]
[1740130197853,3.12357315,657.83,656.82,0.30449742]
[1740130198052,2.26218766,657.86,656.82,0.30449742]
[1740130198255,3.11523741,657.85,656.82,0.30449742]
[1740130198453,3.11523741,657.84,656.82,0.30449742]
[1740130198649,3.11523741,657.83,656.82,0.30449742]
[1740130198851,3.11523741,657.82,656.82,0.30449742]
[1740130199054,2.26218766,657.83,656.82,0.30449742]
[1740130199055,3.11523741,657.81,656.82,0.30449742]
[1740130199256,3.11449958,657.8,656.82,0.30449742]
[1740130199452,3.11449958,657.79,656.82,0.30449742]
[1740130199757,3.11449958,657.78,656.82,0.30449742]
[1740130200058,3.11449958,657.77,656.82,0.30449742]
[1740130200361,3.11449958,657.76,656.82,0.30449742]
[1740130200561,3.11449958,657.75,656.82,0.30449742]
[1740130200756,3.11449958,657.74,656.82,0.30449742]
[1740130200959,3.11449958,657.73,656.82,0.30449742]
[1740130201258,3.11449958,657.72,656.82,0.30449742]
[1740130201556,3.11449958,657.71,656.82,0.30449742]
[1740130201755,3.11449958,657.7,656.82,0.30449742]
[1740130201958,3.11449958,657.69,656.82,0.30449742]
[1740130202259,3.11449958,657.68,656.82,0.30449742]
[1740130202450,3.11449958,657.67,656.82,0.30449742]
[1740130202651,3.11449958,657.74,656.82,0.30449742]
[1740130202856,2.26218766,657.67,656.82,0.30449742]
[1740130203954,3.11164115,657.66,656.82,0.30449742]
[1740130204158,3.11164115,657.65,656.82,0.30449742]
[1740130204357,3.11164115,657.64,656.82,0.30449742]
[1740130204558,3.11164115,657.63,656.82,0.30449742]
[1740130204760,3.11164115,657.62,656.82,0.30449742]
[1740130204961,2.26218766,657.65,656.82,0.30449742]
[1740130205161,3.11083667,657.64,656.82,0.30449742]
[1740130205360,3.11083667,657.63,656.82,0.30449742]
[1740130205561,2.26218766,657.65,656.82,0.30449742]
[1740130205957,2.26218766,657.64,656.82,0.30449742]
[1740130207865,3.11008966,658.14,656.82,0.30449742]
[1740130208061,0.30387747,658.16,656.82,0.30449742]
[1740130208062,3.11008966,658.13,656.82,0.30449742]
[1740130208264,3.11008966,658.12,656.82,0.30449742]
[1740130208464,3.11008966,658.11,656.82,0.30449742]
[1740130208767,2.25250305,658.12,656.82,0.30449742]
[1740130208768,3.11008966,658.1,656.82,0.30449742]
[1740130209064,3.11008966,658.09,656.82,0.30449742]
[1740130209269,3.11008966,658.08,656.82,0.30449742]
[1740130209465,3.11008966,658.07,656.82,0.30449742]
[1740130209665,3.11008966,658.06,656.82,0.30449742]
[1740130209863,3.11008966,658.05,656.82,0.30449742]
[1740130210064,1.58829771,658.1,656.82,0.30449742]
[1740130210065,3.11008966,658.04,656.82,0.30449742]
[1740130210364,5.36259271,658.03,656.82,0.30449742]
[1740130210565,3.11008966,658.02,656.82,0.30449742]
[1740130210860,3.11008966,658.01,656.82,0.30449742]
[1740130211064,3.11008966,658.0,656.82,0.30449742]
[1740130211261,3.11008966,657.99,656.82,0.30449742]
[1740130211466,3.11008966,657.98,656.82,0.30449742]
[1740130211665,5.36259271,657.97,656.82,0.30449742]
[1740130211966,3.11008966,657.96,656.82,0.30449742]
[1740130212160,3.11008966,657.95,656.82,0.30449742]
[1740130212360,3.11008966,657.94,656.82,0.30449742]
[1740130212669,2.25250305,657.97,656.82,0.30449742]
[1740130212670,3.11008966,657.93,656.82,0.30449742]
[1740130212871,3.11008966,657.92,656.82,0.30449742]
[1740130213077,3.11008966,657.91,656.82,0.30449742]
[1740130213268,3.11008966,657.9,656.82,0.30449742]
[1740130213465,3.11008966,657.89,656.82,0.30449742]
[1740130213666,3.11008966,657.88,656.82,0.30449742]
[1740130213864,3.11008966,657.87,656.82,0.30449742]
[1740130214067,3.11008966,657.86,656.82,0.30449742]
[1740130214268,3.11008966,657.85,656.82,0.30449742]
[1740130214470,3.11008966,657.84,656.82,0.30449742]
[1740130214669,2.25250305,657.91,656.82,0.30449742]
[1740130214869,3.10986229,657.9,656.82,0.30449742]
[1740130215070,3.10986229,657.89,656.82,0.30449742]
[1740130215269,3.10986229,657.88,656.82,0.30449742]
[1740130215470,3.10986229,657.87,656.82,0.30449742]
[1740130215770,2.25250305,657.9,656.82,0.30449742]
[1740130215963,3.109866,657.89,656.82,0.30449742]
[1740130216165,3.109866,657.88,656.82,0.30449742]
[1740130216369,3.109866,657.87,656.82,0.30449742]
[1740130216664,3.109866,657.86,656.82,0.30449742]
[1740130216863,3.109866,657.85,656.82,0.30449742]
[1740130217064,2.25250305,657.9,656.82,0.30449742]
[1740130217065,3.109866,657.84,656.82,0.30449742]
[1740130217270,2.25250305,657.84,656.82,0.30449742]
[1740130218773,3.11021554,657.83,656.82,0.30449742]
[1740130218974,3.11022485,657.82,656.82,0.30449742]
[1740130219177,2.25250305,657.83,656.82,0.30449742]
[1740130220874,2.25250305,657.82,656.82,0.30449742]
[1740130222574,3.11048929,658.08,656.82,0.30449742]
[1740130222874,2.25250305,658.09,656.82,0.30449742]
[1740130224273,2.25250305,658.08,656.82,0.30449742]
[1740130225569,2.25250305,658.07,656.82,0.30449742]
[1740130226977,5.3641164,658.06,656.82,0.30449742]
[1740130227175,3.11161335,658.05,656.82,0.30449742]
[1740130227372,3.11161335,658.04,656.82,0.30449742]
[1740130227573,3.11161335,658.03,656.82,0.30449742]
[1740130227774,3.11161335,658.02,656.82,0.30449742]
[1740130228074,3.11161335,658.01,656.82,0.30449742]
[1740130228276,3.11161335,658.0,656.82,0.30449742]
[1740130228471,3.11161335,657.99,656.82,0.30449742]
[1740130228674,3.11161335,657.98,656.82,0.30449742]
[1740130228879,3.11161335,657.97,656.82,0.30449742]
[1740130229078,3.11161335,657.96,656.82,0.30449742]
[1740130229374,3.11161335,657.95,656.82,0.30449742]
[1740130229579,3.11161335,657.94,656.82,0.30449742]
[1740130229878,3.11161335,657.93,656.82,0.30449742]
[1740130230079,3.11161335,657.92,656.82,0.30449742]
[1740130230279,3.11161335,657.91,656.82,0.30449742]
[1740130230479,3.11161335,657.9,656.82,0.30449742]
[1740130230679,3.11161335,657.89,656.82,0.30449742]
[1740130230979,3.11161335,657.88,656.82,0.30449742]
[1740130231178,3.11161335,657.87,656.82,0.30449742]
[1740130231380,5.3641164,657.86,656.82,0.30449742]
[1740130231580,2.25250305,657.86,656.82,0.30449742]
[1740130232077,3.11209395,657.85,656.82,0.30449742]
[1740130232272,3.11209395,657.84,656.82,0.30449742]
[1740130232479,3.11209395,657.83,656.82,0.30449742]
[1740130232679,2.25250305,657.85,656.82,0.30449742]
[1740130232680,3.11209395,657.82,656.82,0.30449742]
[1740130232876,2.25250305,657.85,656.82,0.30449742]
[1740130233478,2.25250305,657.84,656.82,0.30449742]
[1740130235378,0.30387747,658.16,656.82,0.30449742]
[1740130235578,3.11199553,658.15,656.82,0.30449742]
[1740130235883,5.36582624,658.14,656.82,0.30449742]
[1740130236182,3.11199553,658.13,656.82,0.30449742]
[1740130236375,3.11199553,658.12,656.82,0.30449742]
[1740130236575,2.25383071,658.14,656.82,0.30449742]
[1740130237278,3.11170834,658.58,656.82,0.30449742]
[1740130237475,3.11170834,658.57,656.82,0.30449742]
[1740130237676,3.11170834,658.56,656.82,0.30449742]
[1740130237878,3.11170834,658.55,656.82,0.30449742]
[1740130238081,3.11170834,658.54,656.82,0.30449742]
[1740130238282,3.11170834,658.53,656.82,0.30449742]
[1740130238479,3.11170834,658.52,656.82,0.30449742]
[1740130238679,3.11170834,658.51,656.82,0.30449742]
[1740130238880,3.11170834,658.5,656.82,0.30449742]
[1740130239079,3.11170834,658.49,656.82,0.30449742]
[1740130239279,2.25383071,658.51,656.82,0.30449742]
[1740130239280,3.11170834,658.48,656.82,0.30449742]
[1740130239487,3.11170834,658.47,656.82,0.30449742]
[1740130239686,2.25383071,658.51,656.82,0.30449742]
[1740130239887,2.25383071,658.5,656.82,0.30449742]
[1740130241390,2.25383071,658.81,656.82,0.30449742]
[1740130241590,0.30358227,658.8,656.82,0.30449742]
[1740130243491,1.58671054,658.79,656.82,0.30449742]
[1740130244095,3.11170834,658.78,656.82,0.30449742]
[1740130244286,3.11170834,658.77,656.82,0.30449742]
[1740130244488,3.11170834,658.76,656.82,0.30449742]
[1740130244689,3.11170834,658.75,656.82,0.30449742]
[1740130244886,3.11170834,658.78,656.82,0.30449742]
[1740130245087,2.25383071,658.74,656.82,0.30449742]
[1740130245589,3.11170834,658.73,656.82,0.30449742]
[1740130245793,3.11170834,658.72,656.82,0.30449742]
[1740130245992,3.11170834,658.71,656.82,0.30449742]
[1740130246193,3.11170834,658.7,656.82,0.30449742]
[1740130246395,3.11170834,658.69,656.82,0.30449742]
[1740130246593,3.11170834,658.68,656.82,0.30449742]
[1740130246895,5.36553905,658.67,656.82,0.30449742]
[1740130247189,3.11170834,658.66,656.82,0.30449742]
[1740130247394,3.11170834,658.65,656.82,0.30449742]
[1740130247590,3.11170834,658.64,656.82,0.30449742]
[1740130247789,3.11170834,658.63,656.82,0.30449742]
[1740130247987,3.11170834,658.62,656.82,0.30449742]
[1740130248189,2.25383071,658.61,656.82,0.30449742]
[1740130248695,3.11170834,658.6,656.82,0.30449742]
[1740130248897,3.11170834,658.59,656.82,0.30449742]
[1740130249199,5.36553905,658.58,656.82,0.30449742]
[1740130249394,3.11170834,658.57,656.82,0.30449742]
[1740130249601,3.11170834,658.56,656.82,0.30449742]
[1740130249799,3.11170834,658.55,656.82,0.30449742]
[1740130249996,3.11170834,658.54,656.82,0.30449742]
[1740130250197,3.11170834,658.57,656.82,0.30449742]
[1740130250393,2.25383071,658.53,656.82,0.30449742]
[1740130251192,5.36553905,658.53,656.82,0.30449742]
[1740130251400,3.11170834,658.52,656.82,0.30449742]
[1740130251595,2.25383071,658.53,656.82,0.30449742]
[1740130251995,1.58671054,658.79,656.82,0.30449742]
[1740130252203,0.30359148,658.78,656.82,0.30449742]
[1740130255903,2.2385527,658.77,656.82,0.30449742]
[1740130257703,0.30359148,658.78,656.82,0.30449742]
[1740130258202,1.58671054,658.79,656.82,0.30449742]
[1740130272810,3.08539256,658.78,656.82,0.30449742]
[1740130273110,3.08539256,658.77,656.82,0.30449742]
[1740130273310,1.58671054,658.79,656.82,0.30449742]
[1740130273311,3.08539256,658.76,656.82,0.30449742]
[1740130273512,3.08539256,658.75,656.82,0.30449742]
[1740130273706,3.08539256,658.74,656.92,1.12260335]
[1740130273910,3.08539256,658.75,656.94,0.3044418]
[1740130275111,1.58671054,658.79,656.94,0.3044418]
[1740130275112,2.2385527,658.74,656.94,0.3044418]
[1740130276813,1.58671054,658.79,656.94,0.3044418]
[1740130278713,0.30359148,658.78,656.94,0.3044418]
[1740130282217,2.2385527,658.77,656.94,0.3044418]
[1740130283916,3.09200725,658.76,656.94,0.3044418]
[1740130284114,3.09200725,658.75,656.94,0.3044418]
[1740130284320,3.09200725,658.74,656.94,0.3044418]
[1740130284515,2.2385527,658.75,656.94,0.3044418]